[Event "CZE-ch Youth G10-G12-G14 2022"]
[Site "Luhacovice"]
[Date "2022.03.16"]
[Round "6.33"]
[White "Janouskova, Adela"]
[Black "Cinkova, Vicky"]
[Result "1-0"]
[ECO "B00"]
[WhiteElo "1585"]
[BlackElo "1317"]
[Annotator "NA"]
[PlyCount "53"]
[EventDate "2022.03.12"]
[EventType "swiss"]
[EventCountry "CZE"]
[SourceTitle "playchess.com"]
[Source "ChessBase"]
[SourceQuality "1"]
[TimeControl "40/5400+30:1800+30"]

1. e4 {[%emt 0:00:17]} b6 {[%emt 0:00:25]} 2. d4 {[%emt 0:00:37]} Bb7 {[%emt 0:00:09]} 3. Nc3 {[%emt 0:01:36]} e6 {[%emt 0:00:09]} 4. Nf3 {[%emt 0:02:37]} Bb4 {[%emt 0:00:54]} 5. Bd3 {[%emt 0:02:02]} Nf6 {[%emt 0:04:46]} 6. Qe2 {[%emt 0:03:36]} d5 {[%emt 0:02:36]} 7. e5 {[%emt 0:08:37]} Ne4 {[%emt 0:02:23]} 8. Bd2 {[%emt 0:04:39]} c5 {[%emt 0:06:42]} 9. Nxe4 {[%emt 0:06:02]} dxe4 {[%emt 0:00:34]} 10. Bxe4 {[%emt 0:00:35]} Bxe4 {[%emt 0:02:32]} 11. Qxe4 {[%emt 0:00:05]} Bxd2+ {[%emt 0:00:43]} 12. Nxd2 {[%emt 0:00:32]} Qd5 {[%emt 0:02:41]} 13. dxc5 {[%emt 0:03:50]} bxc5 {[%emt 0:00:53]} 14. c4 {[%emt 0:02:23]} Qxe4+ {[%emt 0:01:04]} 15. Nxe4 {[%emt 0:00:04]} Nd7 {[%emt 0:02:27]} 16. f4 {[%emt 0:01:30]} O-O {[%emt 0:01:19]} 17. O-O-O {[%emt 0:01:14]} Rfd8 {[%emt 0:01:12]} 18. b3 {[%emt 0:02:16]} f6 {[%emt 0:05:06]} 19. exf6 {[%emt 0:02:20]} Nxf6 {[%emt 0:00:22]} 20. Nxc5 {[%emt 0:00:43]} Re8 {[%emt 0:01:09]} 21. Rhe1 {[%emt 0:01:16]} Ng4 {[%emt 0:01:30]} 22. h3 {[%emt 0:00:43]} Nh6 {[%emt 0:00:43]} 23. Nxe6 {[%emt 0:01:05]} Nf5 {[%emt 0:01:42]} 24. g4 {[%emt 0:01:35]} Nh6 {[%emt 0:00:48]} 25. f5 {[%emt 0:04:12]} Kh8 {[%emt 0:01:25]} 26. Rd7 {[%emt 0:01:19]} a5 {[%emt 0:01:08]} 27. Red1 {[%emt 0:00:59]} 1-0

[Event "CZE-ch Youth G10-G12-G14 2022"]
[Site "Luhacovice"]
[Date "2022.03.16"]
[Round "6.34"]
[White "Stavova, Marketa"]
[Black "Brezikova, Beata"]
[Result "1/2-1/2"]
[ECO "C40"]
[WhiteElo "1146"]
[BlackElo "1266"]
[Annotator "NA"]
[PlyCount "75"]
[EventDate "2022.03.12"]
[EventType "swiss"]
[EventCountry "CZE"]
[SourceTitle "playchess.com"]
[Source "ChessBase"]
[SourceQuality "1"]
[TimeControl "40/5400+30:1800+30"]

1. e4 {[%emt 0:00:05]} e5 {[%emt 0:00:04]} 2. Nf3 {[%emt 0:00:24]} f5 {[%emt 0:00:42]} 3. Nc3 {[%emt 0:01:48]} fxe4 {[%emt 0:05:53]} 4. Nxe4 {[%emt 0:00:55]} Nf6 {[%emt 0:08:55]} 5. d3 {[%emt 0:04:03]} d5 {[%emt 0:07:49]} 6. Ng3 {[%emt 0:00:42]} Nc6 {[%emt 0:02:47]} 7. Be2 {[%emt 0:02:13]} Be7 {[%emt 0:04:35]} 8. O-O {[%emt 0:03:09]} O-O {[%emt 0:03:40]} 9. c3 {[%emt 0:05:23]} Qe8 {[%emt 0:12:06]} 10. Nd2 {[%emt 0:11:19]} Bd6 {[%emt 0:10:15]} 11. Nb3 {[%emt 0:02:38]} d4 {[%emt 0:12:56]} 12. cxd4 {[%emt 0:02:45]} Nxd4 {[%emt 0:05:18]} 13. Nxd4 {[%emt 0:00:35]} exd4 {[%emt 0:01:45]} 14. Bf3 {[%emt 0:00:58]} Rb8 {[%emt 0:01:55]} 15. Ne4 {[%emt 0:01:36]} Qd7 {[%emt 0:02:11]} 16. Bg5 {[%emt 0:08:29]} Nxe4 {[%emt 0:03:11]} 17. Bxe4 {[%emt 0:01:13]} Qg4 {[%emt 0:02:22]} 18. Qxg4 {[%emt 0:01:15]} Bxg4 {[%emt 0:00:07]} 19. Rac1 {[%emt 0:00:34]} Be6 {[%emt 0:01:09]} 20. b3 {[%emt 0:01:23]} c6 {[%emt 0:01:29]} 21. Bh4 {[%emt 0:01:46]} Rbc8 {[%emt 0:03:13]} 22. f3 {[%emt 0:01:10]} Rf7 {[%emt 0:00:55]} 23. Bf2 {[%emt 0:02:00]} c5 {[%emt 0:00:40]} 24. Rfe1 {[%emt 0:00:36]} Re8 {[%emt 0:02:45]} 25. Bd5 {[%emt 0:01:26]} Rfe7 {[%emt 0:01:48]} 26. Bh4 {[%emt 0:00:23]} Bxd5 {[%emt 0:00:13]} 27. Bxe7 {[%emt 0:00:17]} Rxe7 {[%emt 0:00:06]} 28. Rxe7 {[%emt 0:00:20]} Bxe7 {[%emt 0:00:05]} 29. Re1 {[%emt 0:00:30]} Kf7 {[%emt 0:00:18]} 30. Kf2 {[%emt 0:00:21]} Bd6 {[%emt 0:00:44]} 31. h4 {[%emt 0:01:03]} h6 {[%emt 0:01:42]} 32. g4 {[%emt 0:00:39]} g6 {[%emt 0:01:20]} 33. Re2 {[%emt 0:02:38]} Bf4 {[%emt 0:01:30]} 34. Rc2 {[%emt 0:01:34]} b6 {[%emt 0:01:13]} 35. Rb2 {[%emt 0:01:58]} a5 {[%emt 0:00:56]} 36. a4 {[%emt 0:00:25]} Bd6 {[%emt 0:00:41]} 37. Kg2 {[%emt 0:01:26]} Kg7 {[%emt 0:00:23]} 38. Kf2 {[%emt 0:01:40]} 1/2-1/2

[Event "CZE-ch Youth G10-G12-G14 2022"]
[Site "Luhacovice"]
[Date "2022.03.16"]
[Round "6.35"]
[White "Reznickova, Sibyla"]
[Black "Archlebova, Stela"]
[Result "0-1"]
[ECO "D02"]
[WhiteElo "1304"]
[BlackElo "1121"]
[Annotator "NA"]
[PlyCount "62"]
[EventDate "2022.03.12"]
[EventType "swiss"]
[EventCountry "CZE"]
[SourceTitle "playchess.com"]
[Source "ChessBase"]
[SourceQuality "1"]
[TimeControl "40/5400+30:1800+30"]

1. d4 {[%emt 0:00:11]} d5 {[%emt 0:16:19]} 2. c4 {[%emt 0:11:18]} c6 {[%emt 0:00:30]} 3. Nc3 {[%emt 0:00:30]} Nf6 {[%emt 0:00:30]} 4. Bf4 {[%emt 0:00:30]} Bf5 {[%emt 0:00:30]} 5. Nf3 {[%emt 0:00:30]} e6 {[%emt 0:00:30]} 6. e3 {[%emt 0:00:30]} Bb4 {[%emt 0:00:30]} 7. Be2 {[%emt 0:00:30]} Ne4 {[%emt 0:00:30]} 8. Qb3 {[%emt 0:00:30]} Qb6 {[%emt 0:12:34]} 9. Rc1 {[%emt 0:37:22]} Bxc3+ {[%emt 0:00:30]} 10. bxc3 {[%emt 0:00:30]} Qxb3 {[%emt 0:00:30]} 11. axb3 {[%emt 0:00:30]} Nd7 {[%emt 0:00:30]} 12. Ng5 {[%emt 0:00:30]} Nxg5 {[%emt 0:00:30]} 13. Bxg5 {[%emt 0:00:30]} f6 {[%emt 0:00:30]} 14. Bh4 {[%emt 0:00:30]} O-O {[%emt 0:00:30]} 15. g4 {[%emt 0:00:30]} Bg6 {[%emt 0:05:43]} 16. Bg3 {[%emt 0:02:57]} a5 {[%emt 0:01:51]} 17. h4 {[%emt 0:02:27]} a4 {[%emt 0:01:24]} 18. b4 {[%emt 0:03:48]} a3 {[%emt 0:01:17]} 19. Kd2 {[%emt 0:03:22]} a2 {[%emt 0:01:57]} 20. Ra1 {[%emt 0:02:11]} Ra3 {[%emt 0:01:27]} 21. b5 {[%emt 0:02:43]} Rfa8 {[%emt 0:01:07]} 22. Bd1 {[%emt 0:02:17]} Nb6 {[%emt 0:02:19]} 23. bxc6 {[%emt 0:07:53]} Nxc4+ {[%emt 0:01:33]} 24. Ke2 {[%emt 0:02:52]} bxc6 {[%emt 0:00:46]} 25. h5 {[%emt 0:02:04]} Bb1 {[%emt 0:00:48]} 26. f3 {[%emt 0:02:52]} Rxc3 {[%emt 0:02:17]} 27. Kf2 {[%emt 0:07:10]} Nxe3 {[%emt 0:05:08]} 28. Be2 {[%emt 0:01:22]} Rb3 {[%emt 0:01:32]} 29. Rc1 {[%emt 0:01:12]} Nc2 {[%emt 0:01:44]} 30. Bd1 {[%emt 0:01:32]} Nxa1 {[%emt 0:00:43]} 31. Bxb3 {[%emt 0:00:40]} Nxb3 {[%emt 0:00:26]} 0-1

[Event "CZE-ch Youth G10-G12-G14 2022"]
[Site "Luhacovice"]
[Date "2022.03.16"]
[Round "6.36"]
[White "Filipova, Vanesa"]
[Black "Dominikova, Denisa"]
[Result "0-1"]
[ECO "D01"]
[WhiteElo "1146"]
[BlackElo "1254"]
[Annotator "NA"]
[PlyCount "89"]
[EventDate "2022.03.12"]
[EventType "swiss"]
[EventCountry "CZE"]
[SourceTitle "playchess.com"]
[Source "ChessBase"]
[SourceQuality "1"]
[TimeControl "40/5400+30:1800+30"]

1. d4 {[%emt 0:00:08]} Nf6 {[%emt 0:00:22]} 2. Nc3 {[%emt 0:00:25]} e6 {[%emt 0:00:32]} 3. Bg5 {[%emt 0:00:29]} d5 {[%emt 0:00:45]} 4. e3 {[%emt 0:00:55]} Be7 {[%emt 0:01:10]} 5. Bd3 {[%emt 0:00:50]} b6 {[%emt 0:02:00]} 6. Bxf6 {[%emt 0:06:21]} Bxf6 {[%emt 0:00:47]} 7. Nf3 {[%emt 0:10:35]} Bb7 {[%emt 0:07:18]} 8. e4 {[%emt 0:01:26]} dxe4 {[%emt 0:05:34]} 9. Nxe4 {[%emt 0:00:48]} O-O {[%emt 0:03:06]} 10. O-O {[%emt 0:01:17]} Bxd4 {[%emt 0:04:14]} 11. Neg5 {[%emt 0:16:09]} g6 {[%emt 0:09:26]} 12. c3 {[%emt 0:08:25]} Bg7 {[%emt 0:05:13]} 13. Re1 {[%emt 0:01:33]} Na6 {[%emt 0:06:33]} 14. Ne4 {[%emt 0:15:55]} Qe7 {[%emt 0:11:27]} 15. Qe2 {[%emt 0:08:29]} Nc5 {[%emt 0:03:51]} 16. Nxc5 {[%emt 0:00:32]} Qxc5 {[%emt 0:00:56]} 17. Rac1 {[%emt 0:05:18]} Rad8 {[%emt 0:05:28]} 18. b4 {[%emt 0:00:54]} Qd5 {[%emt 0:04:43]} 19. Red1 {[%emt 0:01:28]} Qc6 {[%emt 0:02:31]} 20. Bb5 {[%emt 0:06:48]} Rxd1+ {[%emt 0:03:57]} 21. Rxd1 {[%emt 0:00:27]} Qxc3 {[%emt 0:01:26]} 22. Rb1 {[%emt 0:03:39]} Bxf3 {[%emt 0:01:54]} 23. Qxf3 {[%emt 0:01:08]} Qc2 {[%emt 0:01:59]} 24. Rd1 {[%emt 0:01:40]} Qxa2 {[%emt 0:01:14]} 25. h4 {[%emt 0:00:47]} Qb2 {[%emt 0:02:41]} 26. Qe4 {[%emt 0:01:25]} c5 {[%emt 0:02:59]} 27. Rb1 {[%emt 0:00:16]} Qd4 {[%emt 0:01:10]} 28. Qxd4 {[%emt 0:03:17]} Bxd4 {[%emt 0:00:11]} 29. Kf1 {[%emt 0:01:24]} Rc8 {[%emt 0:01:38]} 30. Rc1 {[%emt 0:00:27]} Kf8 {[%emt 0:00:51]} 31. Ke2 {[%emt 0:00:34]} Ke7 {[%emt 0:01:12]} 32. Kd3 {[%emt 0:01:12]} Bxf2 {[%emt 0:00:52]} 33. Rc4 {[%emt 0:01:05]} Kd6 {[%emt 0:01:52]} 34. Ba6 {[%emt 0:00:49]} Rc7 {[%emt 0:01:04]} 35. Ke2 {[%emt 0:00:29]} Bd4 {[%emt 0:00:48]} 36. Kd3 {[%emt 0:00:18]} Kd5 {[%emt 0:00:47]} 37. Rc2 {[%emt 0:00:46]} e5 {[%emt 0:01:25]} 38. Bc4+ {[%emt 0:00:26]} Kd6 {[%emt 0:00:23]} 39. b5 {[%emt 0:00:32]} f5 {[%emt 0:00:51]} 40. g3 {[%emt 0:00:33]} e4+ {[%emt 0:00:47]} 41. Ke2 {[%emt 0:30:23]} Ke5 {[%emt 0:30:59]} 42. Kf1 {[%emt 0:00:37]} f4 {[%emt 0:01:16]} 43. gxf4+ {[%emt 0:00:30]} Kxf4 {[%emt 0:00:27]} 44. Rh2 {[%emt 0:00:30]} h6 {[%emt 0:02:47]} 45. h5 {[%emt 0:00:00]} 0-1

[Event "CZE-ch Youth G10-G12-G14 2022"]
[Site "Luhacovice"]
[Date "2022.03.16"]
[Round "6.37"]
[White "Vacekova Anita"]
[Black "Dorazilova, Kristyna"]
[Result "0-1"]
[ECO "C41"]
[WhiteElo "1000"]
[BlackElo "1240"]
[Annotator "NA"]
[PlyCount "68"]
[EventDate "2022.03.12"]
[EventType "swiss"]
[EventCountry "CZE"]
[SourceTitle "playchess.com"]
[Source "ChessBase"]
[SourceQuality "1"]
[TimeControl "40/5400+30:1800+30"]

1. e4 {[%emt 0:00:05]} d6 {[%emt 0:00:04]} 2. d4 {[%emt 0:00:05]} Nf6 {[%emt 0:00:06]} 3. Nc3 {[%emt 0:00:08]} Nbd7 {[%emt 0:00:06]} 4. Nf3 {[%emt 0:00:14]} e5 {[%emt 0:00:07]} 5. Bc4 {[%emt 0:01:14]} h6 {[%emt 0:00:08]} 6. Be3 {[%emt 0:01:51]} Be7 {[%emt 0:00:16]} 7. h3 {[%emt 0:01:41]} c6 {[%emt 0:00:10]} 8. a4 {[%emt 0:00:30]} a5 {[%emt 0:00:16]} 9. O-O {[%emt 0:08:52]} Qc7 {[%emt 0:00:11]} 10. dxe5 {[%emt 0:01:22]} dxe5 {[%emt 0:00:22]} 11. Nd2 {[%emt 0:02:36]} g5 {[%emt 0:01:44]} 12. Re1 {[%emt 0:03:48]} Rg8 {[%emt 0:00:19]} 13. Nf1 {[%emt 0:02:04]} Nf8 {[%emt 0:00:22]} 14. Ng3 {[%emt 0:02:07]} Ng6 {[%emt 0:00:23]} 15. Nf5 {[%emt 0:00:43]} Bxf5 {[%emt 0:00:27]} 16. exf5 {[%emt 0:00:15]} Nf4 {[%emt 0:00:40]} 17. Bxf4 {[%emt 0:11:20]} gxf4 {[%emt 0:00:11]} 18. Qe2 {[%emt 0:00:45]} Bd6 {[%emt 0:04:09]} 19. Ne4 {[%emt 0:01:54]} Nxe4 {[%emt 0:01:00]} 20. Qxe4 {[%emt 0:00:14]} O-O-O {[%emt 0:01:25]} 21. f6 {[%emt 0:05:47]} Rg6 {[%emt 0:03:30]} 22. Qf5+ {[%emt 0:09:11]} Kb8 {[%emt 0:00:45]} 23. Rad1 {[%emt 0:02:27]} Rg5 {[%emt 0:02:42]} 24. Qh7 {[%emt 0:03:31]} Rg6 {[%emt 0:03:54]} 25. Qxf7 {[%emt 0:00:29]} Qxf7 {[%emt 0:00:25]} 26. Bxf7 {[%emt 0:00:13]} Rxf6 {[%emt 0:00:13]} 27. Bc4 {[%emt 0:01:25]} Kc7 {[%emt 0:01:05]} 28. Rd3 {[%emt 0:03:27]} Rd7 {[%emt 0:02:19]} 29. Red1 {[%emt 0:02:08]} Rg7 {[%emt 0:00:34]} 30. g3 {[%emt 0:01:20]} e4 {[%emt 0:03:02]} 31. Rc3 {[%emt 0:02:01]} fxg3 {[%emt 0:00:51]} 32. fxg3 {[%emt 0:00:30]} Bxg3 {[%emt 0:01:03]} 33. Kh1 {[%emt 0:00:29]} Rf2 {[%emt 0:01:20]} 34. Rxg3 {[%emt 0:02:02]} Rxg3 {[%emt 0:00:31]} 0-1

[Event "CZE-ch Youth G10-G12-G14 2022"]
[Site "Luhacovice"]
[Date "2022.03.16"]
[Round "6.38"]
[White "Lackova, Ludmila"]
[Black "Kavanova, Anezka"]
[Result "0-1"]
[ECO "D13"]
[WhiteElo "1167"]
[BlackElo "1089"]
[Annotator "NA"]
[PlyCount "74"]
[EventDate "2022.03.12"]
[EventType "swiss"]
[EventCountry "CZE"]
[SourceTitle "playchess.com"]
[Source "ChessBase"]
[SourceQuality "1"]
[TimeControl "40/5400+30:1800+30"]

1. d4 {[%emt 0:00:04]} d5 {[%emt 0:00:04]} 2. c4 {[%emt 0:00:10]} c6 {[%emt 0:00:06]} 3. Nc3 {[%emt 0:00:33]} Nf6 {[%emt 0:00:09]} 4. cxd5 {[%emt 0:00:32]} cxd5 {[%emt 0:00:21]} 5. Nf3 {[%emt 0:00:44]} Nc6 {[%emt 0:00:34]} 6. Bf4 {[%emt 0:02:30]} e6 {[%emt 0:00:43]} 7. e3 {[%emt 0:01:49]} Be7 {[%emt 0:01:21]} 8. Bb5 {[%emt 0:01:02]} Bd7 {[%emt 0:00:20]} 9. O-O {[%emt 0:01:08]} O-O {[%emt 0:00:08]} 10. Qc2 {[%emt 0:00:54]} a6 {[%emt 0:07:39]} 11. Ba4 {[%emt 0:03:53]} b5 {[%emt 0:00:45]} 12. Bb3 {[%emt 0:01:01]} Nh5 {[%emt 0:05:35]} 13. Ne2 {[%emt 0:06:20]} Rc8 {[%emt 0:01:52]} 14. Qd1 {[%emt 0:05:43]} Nxf4 {[%emt 0:04:39]} 15. Nxf4 {[%emt 0:01:09]} Bd6 {[%emt 0:01:54]} 16. Nd3 {[%emt 0:06:05]} Re8 {[%emt 0:07:06]} 17. a3 {[%emt 0:02:01]} f6 {[%emt 0:02:22]} 18. Re1 {[%emt 0:10:17]} e5 {[%emt 0:02:05]} 19. Bxd5+ {[%emt 0:02:32]} Kh8 {[%emt 0:00:16]} 20. dxe5 {[%emt 0:01:31]} fxe5 {[%emt 0:00:47]} 21. e4 {[%emt 0:02:12]} Bg4 {[%emt 0:03:39]} 22. Re3 {[%emt 0:06:50]} Rf8 {[%emt 0:01:20]} 23. Nde1 {[%emt 0:05:33]} Nd4 {[%emt 0:02:16]} 24. Rb1 {[%emt 0:15:06]} Bc5 {[%emt 0:02:15]} 25. Rd3 {[%emt 0:03:45]} Qf6 {[%emt 0:07:27]} 26. Qd2 {[%emt 0:10:11]} Bxf3 {[%emt 0:05:42]} 27. Nxf3 {[%emt 0:00:41]} Nxf3+ {[%emt 0:03:13]} 28. Rxf3 {[%emt 0:00:10]} Qh4 {[%emt 0:02:23]} 29. Rxf8+ {[%emt 0:00:50]} Rxf8 {[%emt 0:00:17]} 30. Rf1 {[%emt 0:00:36]} Rf6 {[%emt 0:13:53]} 31. Qc2 {[%emt 0:01:46]} Bf8 {[%emt 0:06:34]} 32. Qc8 {[%emt 0:01:13]} Qf4 {[%emt 0:01:01]} 33. Qh3 {[%emt 0:04:31]} Qd2 {[%emt 0:02:07]} 34. Qb3 {[%emt 0:01:59]} Rxf2 {[%emt 0:01:29]} 35. Qd1 {[%emt 0:02:04]} Rxg2+ {[%emt 0:00:26]} 36. Kh1 {[%emt 0:00:28]} Rxh2+ {[%emt 0:00:04]} 37. Kg1 {[%emt 0:00:10]} Qg2# {[%emt 0:00:03]} 0-1

[Event "CZE-ch Youth G10-G12-G14 2022"]
[Site "Luhacovice"]
[Date "2022.03.16"]
[Round "6.39"]
[White "Foldynova Julie"]
[Black "Veverkova, Dorota"]
[Result "1/2-1/2"]
[ECO "D01"]
[WhiteElo "1000"]
[BlackElo "1320"]
[Annotator "NA"]
[PlyCount "102"]
[EventDate "2022.03.12"]
[EventType "swiss"]
[EventCountry "CZE"]
[SourceTitle "playchess.com"]
[Source "ChessBase"]
[SourceQuality "1"]
[TimeControl "40/5400+30:1800+30"]

1. d4 {[%emt 0:00:04]} Nf6 {[%emt 0:00:08]} 2. Nc3 {[%emt 0:00:52]} d5 {[%emt 0:00:45]} 3. Bg5 {[%emt 0:00:15]} Nbd7 {[%emt 0:00:54]} 4. e3 {[%emt 0:01:32]} g6 {[%emt 0:00:44]} 5. Bd3 {[%emt 0:01:28]} Bg7 {[%emt 0:01:37]} 6. Nf3 {[%emt 0:01:57]} O-O {[%emt 0:02:29]} 7. O-O {[%emt 0:01:50]} b6 {[%emt 0:01:49]} 8. e4 {[%emt 0:01:51]} Bb7 {[%emt 0:04:51]} 9. Re1 {[%emt 0:01:03]} c5 {[%emt 0:04:26]} 10. Nxd5 {[%emt 0:08:29]} Bxd5 {[%emt 0:03:23]} 11. exd5 {[%emt 0:00:56]} h6 {[%emt 0:02:58]} 12. Bh4 {[%emt 0:02:02]} g5 {[%emt 0:01:08]} 13. Bg3 {[%emt 0:09:12]} Nxd5 {[%emt 0:00:42]} 14. c3 {[%emt 0:02:12]} e6 {[%emt 0:02:14]} 15. Ne5 {[%emt 0:04:34]} Ne7 {[%emt 0:08:58]} 16. Be4 {[%emt 0:11:31]} Nd5 {[%emt 0:02:47]} 17. c4 {[%emt 0:04:53]} Nxe5 {[%emt 0:01:37]} 18. dxe5 {[%emt 0:01:30]} Ne7 {[%emt 0:02:46]} 19. Bxa8 {[%emt 0:02:25]} Qxa8 {[%emt 0:00:16]} 20. f4 {[%emt 0:07:24]} gxf4 {[%emt 0:04:48]} 21. Bxf4 {[%emt 0:01:17]} Ng6 {[%emt 0:00:21]} 22. Bg3 {[%emt 0:01:44]} Rd8 {[%emt 0:01:06]} 23. Qc2 {[%emt 0:02:40]} Qb7 {[%emt 0:03:55]} 24. Rad1 {[%emt 0:02:22]} Rxd1 {[%emt 0:01:36]} 25. Qxd1 {[%emt 0:02:32]} Qe7 {[%emt 0:02:14]} 26. Qd6 {[%emt 0:03:51]} Qg5 {[%emt 0:01:03]} 27. Qb8+ {[%emt 0:03:08]} Kh7 {[%emt 0:00:24]} 28. Qxa7 {[%emt 0:03:02]} h5 {[%emt 0:01:01]} 29. Qxf7 {[%emt 0:05:23]} h4 {[%emt 0:00:49]} 30. Qxe6 {[%emt 0:04:04]} hxg3 {[%emt 0:00:55]} 31. Qh3+ {[%emt 0:00:46]} Kg8 {[%emt 0:00:26]} 32. Qxg3 {[%emt 0:01:06]} Qxg3 {[%emt 0:00:23]} 33. hxg3 {[%emt 0:00:05]} Bxe5 {[%emt 0:00:08]} 34. b3 {[%emt 0:01:23]} Bxg3 {[%emt 0:00:28]} 35. Re4 {[%emt 0:01:31]} Kf7 {[%emt 0:00:22]} 36. Re3 {[%emt 0:01:14]} Bc7 {[%emt 0:00:47]} 37. Rf3+ {[%emt 0:00:26]} Kg7 {[%emt 0:00:40]} 38. Rd3 {[%emt 0:00:27]} Ne5 {[%emt 0:00:18]} 39. Rd5 {[%emt 0:00:49]} Kg6 {[%emt 0:00:21]} 40. a3 {[%emt 0:00:50]} Nc6 {[%emt 0:02:29]} 41. Rd7 {[%emt 0:30:34]} Bb8 {[%emt 0:33:19]} 42. g3 {[%emt 0:00:11]} Nd4 {[%emt 0:00:17]} 43. b4 {[%emt 0:00:59]} Nc2 {[%emt 0:01:19]} 44. bxc5 {[%emt 0:00:49]} Nxa3 {[%emt 0:01:22]} 45. cxb6 {[%emt 0:00:11]} Nxc4 {[%emt 0:00:16]} 46. Rb7 {[%emt 0:00:26]} Bxg3 {[%emt 0:00:19]} 47. Kg2 {[%emt 0:00:26]} Be5 {[%emt 0:00:23]} 48. Re7 {[%emt 0:00:52]} Kf6 {[%emt 0:05:19]} 49. Rxe5 {[%emt 0:00:29]} Nxe5 {[%emt 0:00:16]} 50. Kf2 {[%emt 0:00:22]} Ke6 {[%emt 0:00:08]} 51. b7 {[%emt 0:00:25]} Nc6 {[%emt 0:00:06]} 1/2-1/2

[Event "CZE-ch Youth G10-G12-G14 2022"]
[Site "Luhacovice"]
[Date "2022.03.16"]
[Round "6.40"]
[White "Lipovska Viktorie"]
[Black "Koval, Anna"]
[Result "1/2-1/2"]
[ECO "C50"]
[WhiteElo "1189"]
[BlackElo "1278"]
[Annotator "NA"]
[PlyCount "88"]
[EventDate "2022.03.12"]
[EventType "swiss"]
[EventCountry "CZE"]
[SourceTitle "playchess.com"]
[Source "ChessBase"]
[SourceQuality "1"]
[TimeControl "40/5400+30:1800+30"]

1. e4 {[%emt 0:00:04]} e5 {[%emt 0:00:01]} 2. Nf3 {[%emt 0:00:09]} Nc6 {[%emt 0:00:04]} 3. Bc4 {[%emt 0:00:19]} Bc5 {[%emt 0:00:09]} 4. d3 {[%emt 0:00:07]} d6 {[%emt 0:00:13]} 5. Nc3 {[%emt 0:00:12]} Bg4 {[%emt 0:00:09]} 6. Be3 {[%emt 0:01:11]} Bb6 {[%emt 0:00:24]} 7. h3 {[%emt 0:01:14]} Bh5 {[%emt 0:00:06]} 8. Qe2 {[%emt 0:00:52]} Nf6 {[%emt 0:01:24]} 9. O-O-O {[%emt 0:00:37]} Qd7 {[%emt 0:00:51]} 10. Rhe1 {[%emt 0:00:53]} O-O-O {[%emt 0:00:41]} 11. Bg5 {[%emt 0:00:52]} Nd4 {[%emt 0:00:49]} 12. Qd2 {[%emt 0:01:13]} Bxf3 {[%emt 0:00:37]} 13. gxf3 {[%emt 0:01:19]} Nxf3 {[%emt 0:00:13]} 14. Qe2 {[%emt 0:00:44]} Nxe1 {[%emt 0:00:26]} 15. Rxe1 {[%emt 0:00:20]} h6 {[%emt 0:00:28]} 16. Bh4 {[%emt 0:00:29]} Rhf8 {[%emt 0:02:11]} 17. Nd5 {[%emt 0:00:49]} Qxh3 {[%emt 0:00:48]} 18. Bxf6 {[%emt 0:02:27]} gxf6 {[%emt 0:00:11]} 19. Nxf6 {[%emt 0:01:54]} Qh4 {[%emt 0:00:14]} 20. Qf3 {[%emt 0:01:11]} Bxf2 {[%emt 0:01:13]} 21. Rf1 {[%emt 0:00:58]} Bc5 {[%emt 0:00:45]} 22. Qf5+ {[%emt 0:00:39]} Kb8 {[%emt 0:01:34]} 23. Nd7+ {[%emt 0:01:27]} Rxd7 {[%emt 0:00:01]} 24. Qxd7 {[%emt 0:00:42]} Be3+ {[%emt 0:02:03]} 25. Kb1 {[%emt 0:00:16]} f6 {[%emt 0:01:51]} 26. a3 {[%emt 0:00:41]} Bg5 {[%emt 0:02:05]} 27. Qe6 {[%emt 0:05:07]} h5 {[%emt 0:01:06]} 28. Qd5 {[%emt 0:02:56]} Qh3 {[%emt 0:00:30]} 29. d4 {[%emt 0:00:30]} a6 {[%emt 0:02:11]} 30. dxe5 {[%emt 0:00:58]} dxe5 {[%emt 0:00:17]} 31. Bd3 {[%emt 0:01:51]} h4 {[%emt 0:01:00]} 32. Qb3 {[%emt 0:00:34]} Bf4 {[%emt 0:01:01]} 33. Qb4 {[%emt 0:00:33]} Rf7 {[%emt 0:01:14]} 34. Bxa6 {[%emt 0:00:57]} c6 {[%emt 0:00:31]} 35. Bc4 {[%emt 0:01:18]} Qg2 {[%emt 0:00:45]} 36. Rxf4 {[%emt 0:02:11]} exf4 {[%emt 0:00:40]} 37. Bxf7 {[%emt 0:00:16]} h3 {[%emt 0:00:23]} 38. Qd6+ {[%emt 0:04:21]} Ka7 {[%emt 0:00:26]} 39. Qd4+ {[%emt 0:00:32]} Ka8 {[%emt 0:01:17]} 40. Qd8+ {[%emt 0:00:26]} Ka7 {[%emt 0:00:13]} 41. Qa5+ {[%emt 0:31:06]} Kb8 {[%emt 0:30:03]} 42. Qd8+ {[%emt 0:00:35]} Ka7 {[%emt 0:00:02]} 43. Qa5+ {[%emt 0:00:28]} Kb8 {[%emt 0:00:08]} 44. Qd8+ {[%emt 0:00:38]} Ka7 {[%emt 0:00:02]} 1/2-1/2

[Event "CZE-ch Youth G10-G12-G14 2022"]
[Site "Luhacovice"]
[Date "2022.03.16"]
[Round "6.41"]
[White "Svrchokrylova, Ludmila"]
[Black "Kaplanova, Dominika"]
[Result "0-1"]
[ECO "B18"]
[WhiteElo "1024"]
[BlackElo "1269"]
[Annotator "NA"]
[PlyCount "80"]
[EventDate "2022.03.12"]
[EventType "swiss"]
[EventCountry "CZE"]
[SourceTitle "playchess.com"]
[Source "ChessBase"]
[SourceQuality "1"]
[TimeControl "40/5400+30:1800+30"]

1. e4 {[%emt 0:00:07]} c6 {[%emt 0:00:09]} 2. d4 {[%emt 0:00:17]} d5 {[%emt 0:00:07]} 3. Nc3 {[%emt 0:00:37]} dxe4 {[%emt 0:00:07]} 4. Nxe4 {[%emt 0:00:17]} Bf5 {[%emt 0:00:06]} 5. Ng3 {[%emt 0:00:31]} Bg6 {[%emt 0:00:08]} 6. Nf3 {[%emt 0:00:49]} e6 {[%emt 0:00:40]} 7. Bc4 {[%emt 0:00:37]} c5 {[%emt 0:01:40]} 8. Be3 {[%emt 0:03:40]} cxd4 {[%emt 0:02:29]} 9. Bxd4 {[%emt 0:02:43]} Nc6 {[%emt 0:02:43]} 10. Qd2 {[%emt 0:08:42]} a6 {[%emt 0:15:31]} 11. O-O {[%emt 0:06:29]} Nxd4 {[%emt 0:03:04]} 12. Nxd4 {[%emt 0:01:53]} Bc5 {[%emt 0:00:53]} 13. Nf3 {[%emt 0:02:31]} Qxd2 {[%emt 0:01:53]} 14. Nxd2 {[%emt 0:00:55]} Nf6 {[%emt 0:02:21]} 15. Nb3 {[%emt 0:02:33]} Bb6 {[%emt 0:04:16]} 16. c3 {[%emt 0:02:41]} O-O {[%emt 0:02:29]} 17. Rad1 {[%emt 0:01:39]} Rfd8 {[%emt 0:03:35]} 18. Rfe1 {[%emt 0:02:15]} Ng4 {[%emt 0:03:06]} 19. Rxd8+ {[%emt 0:08:26]} Rxd8 {[%emt 0:00:23]} 20. Rf1 {[%emt 0:01:56]} Nxf2 {[%emt 0:11:02]} 21. Rxf2 {[%emt 0:01:23]} Rd1+ {[%emt 0:01:16]} 22. Nf1 {[%emt 0:00:26]} Bxf2+ {[%emt 0:00:44]} 23. Kxf2 {[%emt 0:00:13]} Rb1 {[%emt 0:00:24]} 24. Kg1 {[%emt 0:01:32]} b5 {[%emt 0:03:13]} 25. Be2 {[%emt 0:04:16]} Rxb2 {[%emt 0:00:14]} 26. Bf3 {[%emt 0:04:42]} Rxa2 {[%emt 0:02:01]} 27. Nc1 {[%emt 0:04:09]} Rc2 {[%emt 0:05:33]} 28. Ne2 {[%emt 0:00:30]} Bd3 {[%emt 0:00:30]} 29. Kf2 {[%emt 0:00:30]} Bxe2 {[%emt 0:00:30]} 30. Bxe2 {[%emt 0:00:30]} Rxc3 {[%emt 0:00:30]} 31. Nd2 {[%emt 0:00:30]} Kf8 {[%emt 0:00:30]} 32. Ne4 {[%emt 0:00:30]} Ra3 {[%emt 0:00:30]} 33. Ng5 {[%emt 0:00:30]} g6 {[%emt 0:00:30]} 34. Nxh7+ {[%emt 0:00:30]} Ke7 {[%emt 0:00:30]} 35. Ng5 {[%emt 0:00:30]} b4 {[%emt 0:00:30]} 36. Ne4 {[%emt 0:00:30]} b3 {[%emt 0:00:30]} 37. Nc3 {[%emt 0:00:30]} a5 {[%emt 0:00:30]} 38. Bc4 {[%emt 0:01:20]} a4 {[%emt 0:00:53]} 39. Ke3 {[%emt 0:01:22]} b2 {[%emt 0:00:30]} 40. Kd2 {[%emt 0:01:06]} Rxc3 {[%emt 0:00:16]} 0-1